fUST/lending_fUST_20240506
["ID","MTS","AMOUNT","RATE_DAILY","PERIOD"]
[326452175,1714929032274,-209.85,0.00019984,3]
[326452176,1714929032283,-629.59,0.00019984,3]
[326452177,1714929032293,-475.62429208,0.00019992,2]
[326452178,1714929032302,-620.6,0.00019992,3]
[326452179,1714929032311,-620.6,0.00019992,3]
[326452180,1714929032321,-3140.34219364,0.00019993,7]
[326452181,1714929032330,-500.0,0.00019993,2]
[326452182,1714929032339,-500.0,0.00019993,2]
[326452183,1714929032348,-500.0,0.00019993,2]
[326452184,1714929032357,-500.0,0.00019993,2]
[326452185,1714929032366,-500.0,0.00019993,2]
[326452186,1714929032376,-757.16,0.00019993,2]
[326452187,1714929032385,-799.92,0.00019993,2]
[326452188,1714929032394,-627.51417742,0.00019994,5]
[326452189,1714929032403,-62140.6207717,0.00019994,2]
[326452427,1714929038877,-523.65,0.00019993,2]
[326452429,1714929038886,-171207.33871984,0.00019994,2]
[326452431,1714929038900,-20130.84099099,0.00019994,2]
[326452443,1714929039000,-280.7506958,0.00019994,2]
[326452687,1714929046888,-207.37,0.00019984,3]
[326452689,1714929046897,-3908.37,0.00019993,2]
[326452691,1714929046906,-1059.45,0.00019993,2]
[326452693,1714929046915,-500.0,0.00019993,2]
[326452694,1714929046924,-45.87546524,0.00019993,2]
[326452753,1714929129371,180.40346084,0.000189,2]
[326452754,1714929151687,619.9588346,0.0001899,2]
[326452755,1714929187512,164.27828,0.0001589,2]
[326452757,1714929222467,154.65974855,9.999e-05,2]
[326452760,1714929407236,10513.25131042,0.000212,13]
[326452761,1714929415771,473.483309,9.999e-05,2]
[326452762,1714929582657,204.074,0.0001625,2]
[326452763,1714929595976,1623.15008967,9.999e-05,2]
[326452764,1714929684219,-475.62429208,0.00018894,2]
[326452765,1714929684260,-1623.15008967,0.00018895,2]
[326452766,1714929684302,-473.483309,0.00018896,2]
[326452767,1714929684344,-150.0,0.000189,2]
[326452768,1714929684385,-431.34531645,0.00019895,2]
[326452769,1714929684426,-518.43,0.00019982,3]
[326452770,1714929684467,-518.47,0.00019982,3]
[326452771,1714929684509,-284.07927972,0.0001999,2]
[326452772,1714929684550,-234.62235358,0.0001999,2]
[326452773,1714929684591,-500.0,0.00019991,2]
[326452774,1714929684633,-500.0,0.00019991,2]
[326452775,1714929684674,-500.0,0.00019991,2]
[326452776,1714929684715,-279.9295155,0.00019991,2]
[326452777,1714929684756,-500.0,0.00019991,2]
[326452778,1714929684879,-500.0,0.00019991,2]
[326452779,1714929684923,-500.0,0.00019991,2]
[326452780,1714929684967,-500.0,0.00019991,2]
[326452781,1714929685010,-500.0,0.00019991,2]
[326452782,1714929685052,-500.0,0.00019991,2]
[326452783,1714929685092,-500.0,0.00019991,2]
[326452784,1714929685134,-501.83,0.00019991,2]
[326452785,1714929685175,-500.0,0.00019991,2]
[326452786,1714929685216,-276.56714237,0.00019991,2]
[326452787,1714929685256,-733.26,0.00019991,2]
[326452788,1714929685297,-561.42238536,0.00019991,2]
[326452789,1714929685352,-1015.31,0.00019991,2]
[326452790,1714929685471,-1568.78544354,0.00019992,5]
[326452791,1714929685556,-379.63961871,0.00019992,2]
[326452792,1714929685629,-154.94304364,0.00019992,2]
[326452793,1714929685715,-154.8858108,0.00019992,2]
[326452794,1714929685782,-154.89431468,0.00019992,2]
[326452795,1714929685847,-334.2518863,0.00019992,2]
[326452796,1714929685912,-154.829647,0.00019992,2]
[326452797,1714929685980,-60011.1624983,0.00019992,2]
[326452798,1714929692130,715.615908,0.0001589,2]
[326452799,1714929818959,18843.98005958,0.0001589,2]
[326452800,1714929934155,-268.22804886,0.00018899,2]
[326452802,1714930035118,-207.39624322,0.00018899,2]
[326452803,1714930035140,-473.483309,0.00018899,2]
[326452804,1714930035163,-150.0,0.000189,2]
[326452805,1714930035187,-500.0,0.00019989,2]
[326452806,1714930035208,-183.14103238,0.00019989,2]
[326452807,1714930035229,-500.0,0.00019989,2]
[326452808,1714930035250,-71.50041507,0.00019989,2]
[326452809,1714930036103,-163.67509405,0.00019989,2]
[326452810,1714930039103,-264.82449088,0.00019989,2]
[326452811,1714930039124,-300.0,0.00019989,2]
[326452812,1714930039142,-500.0,0.00019989,2]
[326452813,1714930039162,-500.0,0.00019989,2]
[326452814,1714930039183,-784.39272177,0.0001999,5]
[326452815,1714930039202,-9112.42789543,0.0001999,2]
[326452951,1714930238576,-150.0,0.0001998,3]
[326452953,1714930238587,-615.13758525,0.00019988,2]
[326452955,1714930238596,-475.35402396,0.00019989,2]
[326452956,1714930238607,-500.0,0.00019989,2]
[326452958,1714930238617,-500.0,0.00019989,2]
[326452960,1714930238626,-500.0,0.00019989,2]
[326452961,1714930238635,-500.0,0.00019989,2]
[326452962,1714930238644,-500.0,0.00019989,2]
[326452963,1714930238654,-500.0,0.00019989,2]
[326452964,1714930238663,-544.7714739,0.00019989,2]
[326452965,1714930238673,-725.61,0.00019989,2]
[326452966,1714930238683,-500.0,0.00019989,2]
[326452967,1714930238692,-487.28272174,0.00019989,2]
[326452968,1714930238701,-500.0,0.00019989,2]
[326452969,1714930238711,-500.0,0.00019989,2]
[326452970,1714930238721,-3433.39,0.00019989,2]
[326452971,1714930238731,-500.0,0.00019989,2]
[326452972,1714930238740,-500.0,0.00019989,2]
[326452974,1714930238750,-500.0,0.00019989,2]
[326452976,1714930238759,-500.0,0.00019989,2]
[326452978,1714930238768,-392.19636088,0.0001999,5]
[326452980,1714930238778,-3120.20925033,0.0001999,2]
[326452987,1714930239086,-810.98493516,0.0001999,2]
[326453268,1714930616174,462.5422681,0.000125,2]
[326453269,1714930806191,154.64431807,9.999e-05,2]
[326453270,1714931068729,180.71831657,0.0001,2]
[326453279,1714931157165,-154.64431807,0.0001891,2]
[326453280,1714931157187,-638.38448682,0.00018911,2]
[326453281,1714931161914,565.866745,0.0001589,2]
[326453283,1714931228122,-483.33181038,0.00018911,2]
[326453284,1714931228142,-174.16453181,0.00019799,2]
[326453285,1714931228164,-150.0,0.00019871,3]
[326453286,1714931228185,-185.18032545,0.00019984,2]
[326453287,1714931228207,-500.0,0.00019985,2]
[326453288,1714931228230,-500.0,0.00019985,2]
[326453289,1714931228250,-500.0,0.00019985,2]
[326453290,1714931228272,-500.0,0.00019985,2]
[326453291,1714931228293,-500.0,0.00019985,2]
[326453292,1714931228315,-500.0,0.00019985,2]
[326453293,1714931228334,-500.0,0.00019985,2]
[326453294,1714931228357,-500.0,0.00019985,2]
[326453295,1714931228383,-500.0,0.00019985,2]
[326453296,1714931228406,-545.71757965,0.00019985,2]
[326453297,1714931228429,-500.0,0.00019985,2]
[326453298,1714931228451,-500.0,0.00019985,2]
[326453299,1714931228471,-518.84523065,0.00019985,2]
[326453300,1714931228493,-500.0,0.00019985,2]
[326453301,1714931228513,-500.0,0.00019985,2]
[326453302,1714931228535,-485.85830361,0.00019985,2]
[326453303,1714931228557,-500.0,0.00019985,2]
[326453304,1714931228577,-500.0,0.00019985,2]
[326453305,1714931228595,-500.0,0.00019985,2]
[326453306,1714931228615,-500.0,0.00019985,2]
[326453307,1714931228635,-500.0,0.00019985,2]
[326453308,1714931228655,-500.0,0.00019985,2]
[326453309,1714931228675,-695.38,0.00019985,2]
[326453310,1714931228694,-1000.0,0.00019985,2]
[326453311,1714931228713,-495.32470709,0.00019985,2]
[326453312,1714931228734,-500.0,0.00019985,2]
[326453313,1714931228754,-500.0,0.00019985,2]
[326453314,1714931228774,-3602.46,0.00019985,2]
[326453315,1714931228794,-500.0,0.00019985,2]
[326453316,1714931228830,-196.09818045,0.00019986,5]
[326453317,1714931228852,-18384.13048903,0.00019986,2]
[326453318,1714931228874,-154.65974855,0.00019986,2]
[326453319,1714931228896,-154.65974855,0.00019986,2]
[326453320,1714931229042,-154.65974855,0.00019986,2]
[326453321,1714931229062,-154.65974855,0.00019986,2]
[326453322,1714931229082,-410411.32037918,0.00019986,2]
[326453323,1714931229103,-500.0,0.00019986,2]
[326453324,1714931229123,-500.0,0.00019986,2]
[326453325,1714931229143,-714.73,0.00019986,2]
[326453326,1714931229163,-16273.94,0.00019986,2]
[326453327,1714931229183,-1643.95,0.00019986,2]
[326453328,1714931229204,-806.48,0.00019986,2]
[326453329,1714931229223,-2237.63,0.00019986,2]
[326453330,1714931229243,-1051.5,0.00019986,2]
[326453331,1714931229262,-8719.47,0.00019986,2]
[326453332,1714931229282,-500.0,0.00019986,2]
[326453333,1714931229301,-655.49,0.00019986,2]
[326453334,1714931229320,-1162.8,0.00019986,2]
[326453335,1714931229339,-500.0,0.00019987,2]
[326453336,1714931229362,-500.0,0.00019987,2]
[326453337,1714931229381,-726.2,0.00019987,2]
[326453338,1714931229402,-996.74,0.00019987,2]
[326453339,1714931229424,-500.0,0.00019987,2]
[326453340,1714931229447,-3083.58,0.00019987,2]
[326453341,1714931229472,-500.0,0.00019987,2]
[326453342,1714931229494,-500.0,0.00019987,2]
[326453343,1714931229514,-500.0,0.00019987,2]
[326453344,1714931229535,-15795.91,0.00019987,2]
[326453345,1714931229555,-500.0,0.00019987,2]
[326453346,1714931229574,-1324.38,0.00019987,2]
[326453347,1714931229593,-507.88,0.00019987,2]
[326453348,1714931229614,-378.26594181,0.00019987,2]
[326453349,1714931229633,-4681.56,0.00019987,2]
[326453350,1714931229653,-1271.94,0.00019987,2]
[326453351,1714931229675,-1298.2,0.00019987,2]
[326453352,1714931229695,-500.0,0.00019987,2]
[326453353,1714931229723,-727.42,0.00019987,2]
[326453354,1714931229743,-500.0,0.00019987,2]
[326453355,1714931229763,-500.0,0.00019987,2]
[326453356,1714931229784,-500.0,0.00019987,2]
[326453357,1714931229805,-500.0,0.00019987,2]
[326453358,1714931229826,-500.0,0.00019987,2]
[326453359,1714931229846,-1419.73,0.00019987,2]
[326453360,1714931229866,-500.0,0.00019987,2]
[326453361,1714931229886,-1340.56,0.00019987,2]
[326453362,1714931229906,-500.0,0.00019987,2]
[326453363,1714931229931,-901.93,0.00019987,2]
[326453364,1714931229952,-2096.13,0.00019987,2]
[326453365,1714931229971,-715.79,0.00019987,2]
[326453366,1714931229992,-636.63,0.00019987,2]
[326453367,1714931230018,-8756.63,0.00019987,2]
[326453368,1714931230039,-4692.83,0.00019987,2]
[326453369,1714931230059,-500.0,0.00019987,2]
[326453370,1714931230079,-500.0,0.00019987,2]
[326453371,1714931230101,-10211.71,0.00019987,2]
[326453372,1714931230191,-500.0,0.00019987,2]
[326453373,1714931230211,-2539.21,0.00019987,2]
[326453374,1714931230231,-2919.53,0.00019987,2]
[326453375,1714931230251,-2539.21,0.00019987,2]
[326453376,1714931230270,-2539.21,0.00019987,2]
[326453377,1714931230290,-2539.21,0.00019987,2]
[326453378,1714931230309,-2539.21,0.00019987,2]
[326453379,1714931230329,-2539.21,0.00019987,2]
[326453380,1714931230351,-2539.21,0.00019987,2]
[326453381,1714931230377,-2539.21,0.00019987,2]
[326453382,1714931230399,-2539.21,0.00019987,2]
[326453383,1714931230423,-2539.21,0.00019987,2]
[326453384,1714931230445,-2539.21,0.00019987,2]
[326453385,1714931230465,-690.94,0.00019987,2]
[326453386,1714931230484,-690.43,0.00019987,2]
[326453387,1714931230504,-500.0,0.00019987,2]
[326453388,1714931230525,-500.0,0.00019987,2]
[326453389,1714931230545,-1250.59,0.00019987,2]
[326453390,1714931230565,-500.0,0.00019987,2]
[326453391,1714931230585,-500.0,0.00019987,2]
[326453392,1714931230605,-936.96,0.00019987,2]
[326453393,1714931230624,-501.31,0.00019987,2]
[326453394,1714931230644,-500.0,0.00019987,2]
[326453395,1714931230664,-502.93781773,0.00019987,2]
[326453396,1714931230684,-500.0,0.00019987,2]
[326453397,1714931230707,-657.09,0.00019987,2]
[326453398,1714931230727,-285.44606875,0.00019988,2]
[326453399,1714931230746,-551.42384778,0.00019988,2]
[326453400,1714931230766,-2539.21,0.00019988,2]
[326453401,1714931230785,-2539.21,0.00019988,2]
[326453402,1714931230804,-2539.21,0.00019988,2]
[326453403,1714931230824,-2539.21,0.00019988,2]
[326453404,1714931230843,-500.0,0.00019989,2]
[326453405,1714931230862,-500.0,0.00019989,2]
[326453406,1714931230882,-500.0,0.00019989,2]
[326453407,1714931230901,-500.0,0.00019989,2]
[326453408,1714931230920,-500.0,0.00019989,2]
[326453409,1714931230946,-500.0,0.00019989,2]
[326453410,1714931230965,-500.0,0.00019989,2]
[326453411,1714931230983,-500.0,0.00019989,2]
[326453412,1714931231003,-500.0,0.00019989,2]
[326453413,1714931231023,-500.0,0.00019989,2]
[326453414,1714931231042,-500.0,0.00019989,2]
[326453415,1714931231062,-500.0,0.00019989,2]
[326453416,1714931231081,-500.0,0.00019989,2]
[326453417,1714931231100,-500.0,0.00019989,2]
[326453418,1714931231119,-500.0,0.00019989,2]
[326453419,1714931231138,-500.0,0.00019989,2]
[326453420,1714931231158,-521.72530344,0.00019989,2]
[326453421,1714931231179,-500.0,0.00019989,2]
[326453422,1714931231265,-541.22,0.00019989,2]
[326453423,1714931231286,-867.77,0.00019989,2]
[326453424,1714931231308,-391.91470065,0.00019989,2]
[326453425,1714931231328,-342.7189544,0.00019989,2]
[326453426,1714931231349,-500.0,0.00019989,2]
[326453427,1714931231372,-500.0,0.00019989,2]
[326453428,1714931231393,-500.42436663,0.00019989,2]
[326453429,1714931231413,-500.40937958,0.00019989,2]
[326453430,1714931231435,-500.18668381,0.00019989,2]
[326453431,1714931231455,-500.0,0.00019989,2]
[326453432,1714931231475,-500.0,0.00019989,2]
[326453433,1714931231494,-500.0,0.00019989,2]
[326453434,1714931231514,-519.55,0.00019989,2]
[326453435,1714931231535,-500.85,0.00019989,2]
[326453436,1714931231555,-500.0,0.00019989,2]
[326453437,1714931231575,-500.0,0.00019989,2]
[326453438,1714931231594,-500.0,0.00019989,2]
[326453439,1714931231614,-1522.79,0.00019989,2]
[326453440,1714931231634,-500.0,0.00019989,2]
[326453441,1714931231653,-500.0,0.00019989,2]
[326453442,1714931231675,-500.0,0.00019989,2]
[326453443,1714931231694,-2569.88,0.00019989,2]
[326453444,1714931231714,-500.0,0.00019989,2]
[326453445,1714931231734,-500.0,0.00019989,2]
[326453446,1714931231753,-500.0,0.00019989,2]
[326453447,1714931231773,-500.0,0.00019989,2]
[326453448,1714931231794,-500.0,0.00019989,2]
[326453449,1714931231815,-500.0,0.00019989,2]
[326453450,1714931231834,-500.0,0.00019989,2]
[326453451,1714931231853,-500.0,0.00019989,2]
[326453452,1714931231872,-500.0,0.00019989,2]
[326453453,1714931231891,-596.41,0.00019989,2]
[326453454,1714931231911,-548.91823676,0.00019989,2]
[326453455,1714931231932,-500.0,0.00019989,2]
[326453456,1714931231949,-500.0,0.00019989,2]
[326453457,1714931231971,-6908.84,0.00019989,2]
[326453458,1714931231994,-764.85,0.00019989,2]
[326453459,1714931232013,-829.73,0.00019989,2]
[326453460,1714931232035,-500.0,0.00019989,2]
[326453461,1714931232057,-500.0,0.00019989,2]
[326453462,1714931232079,-759.91,0.00019989,2]
[326453463,1714931232102,-460.94430759,0.00019989,2]
[326453464,1714931232123,-3230.36,0.00019989,2]
[326453465,1714931232143,-500.0,0.00019989,2]
[326453466,1714931232162,-500.0,0.00019989,2]
[326453467,1714931232182,-500.0,0.00019989,2]
[326453468,1714931232201,-500.0,0.00019989,2]
[326453469,1714931232220,-500.0,0.00019989,2]
[326453470,1714931232307,-500.0,0.00019989,2]
[326453471,1714931232326,-501.32182307,0.00019989,2]
[326453472,1714931232345,-500.0,0.00019989,2]
[326453473,1714931232371,-724.78,0.00019989,2]
[326453474,1714931232394,-151.0,0.00019989,2]
[326453475,1714931232414,-500.0,0.00019989,2]
[326453476,1714931232437,-877.28,0.00019989,2]
[326453477,1714931232456,-500.0,0.00019989,2]
[326453478,1714931232476,-500.0,0.00019989,2]
[326453479,1714931232495,-500.0,0.00019989,2]
[326453480,1714931232514,-500.0,0.00019989,2]
[326453481,1714931232534,-501.54729623,0.00019989,2]
[326453482,1714931232552,-500.0,0.00019989,2]
[326453483,1714931232571,-861.9,0.00019989,2]
[326453484,1714931232591,-1650.1,0.00019989,2]
[326453485,1714931232610,-151.30797165,0.00019989,2]
[326453486,1714931232631,-500.0,0.00019989,2]
[326453487,1714931232652,-500.0,0.00019989,2]
[326453488,1714931232674,-500.0,0.00019989,2]
[326453489,1714931232693,-500.0,0.00019989,2]
[326453490,1714931232713,-1747.57,0.00019989,2]
[326453491,1714931232733,-553.06,0.00019989,2]
[326453492,1714931232754,-500.0,0.00019989,2]
[326453493,1714931232783,-500.0,0.00019989,2]
[326453494,1714931232821,-282.35191681,0.00019989,2]
[326453495,1714931232865,-500.0,0.00019989,2]
[326453496,1714931232907,-500.0,0.00019989,2]
[326453497,1714931232941,-500.0,0.00019989,2]
[326453498,1714931232979,-500.0,0.00019989,2]
[326453499,1714931233013,-500.0,0.00019989,2]
[326453500,1714931233046,-500.0,0.00019989,2]
[326453501,1714931233080,-500.0,0.00019989,2]
[326453502,1714931233112,-500.0,0.00019989,2]
[326453503,1714931233143,-502.17941796,0.00019989,2]
[326453504,1714931233176,-500.0,0.00019989,2]
[326453505,1714931233206,-500.0,0.00019989,2]
[326453506,1714931233237,-500.0,0.00019989,2]
[326453507,1714931233270,-500.0,0.00019989,2]
[326453508,1714931233304,-500.0,0.00019989,2]
[326453509,1714931233334,-261.44787737,0.00019989,2]
[326453510,1714931233367,-510.26782466,0.00019989,2]
[326453511,1714931233396,-500.0,0.00019989,2]
[326453512,1714931233427,-500.0,0.00019989,2]
[326453513,1714931233459,-500.0,0.00019989,2]
[326453514,1714931233489,-777.75,0.00019989,2]
[326453515,1714931233520,-500.0,0.00019989,2]
[326453516,1714931233644,-500.0,0.00019989,2]
[326453517,1714931233667,-500.0,0.00019989,2]
[326453518,1714931233687,-1033.49,0.00019989,2]
[326453519,1714931233706,-500.0,0.00019989,2]
[326453520,1714931233726,-2439.6,0.00019989,2]
[326453521,1714931233744,-500.0,0.00019989,2]
[326453522,1714931233763,-500.0,0.00019989,2]
[326453523,1714931233786,-500.0,0.00019989,2]
[326453524,1714931233806,-500.0,0.00019989,2]
[326453525,1714931233829,-500.0,0.00019989,2]
[326453526,1714931233850,-2326.89,0.00019989,2]
[326453527,1714931233870,-2433.0,0.00019989,2]
[326453528,1714931233891,-500.0,0.00019989,2]
[326453529,1714931233913,-500.0,0.00019989,2]
[326453530,1714931233936,-784.95,0.00019989,2]
[326453531,1714931233959,-500.0,0.00019989,2]
[326453532,1714931233980,-500.0,0.00019989,2]
[326453533,1714931234002,-663.66,0.00019989,2]
[326453534,1714931234022,-643.78,0.00019989,2]
[326453535,1714931234042,-500.0,0.00019989,2]
[326453536,1714931234061,-172.95270861,0.00019989,2]
[326453537,1714931234080,-500.0,0.00019989,2]
[326453538,1714931234099,-500.0,0.00019989,2]
[326453539,1714931234118,-790.7,0.00019989,2]
[326453540,1714931234137,-450.23461207,0.00019989,2]
[326453541,1714931234156,-500.0,0.00019989,2]
[326453542,1714931234176,-972.7,0.00019989,2]
[326453543,1714931234195,-500.0,0.00019989,2]
[326453544,1714931234213,-915.08,0.00019989,2]
[326453545,1714931234233,-500.0,0.00019989,2]
[326453546,1714931234253,-500.0,0.00019989,2]
[326453547,1714931234273,-500.0,0.00019989,2]
[326453548,1714931234292,-500.0,0.00019989,2]
[326453549,1714931234311,-500.0,0.00019989,2]
[326453550,1714931234331,-500.0,0.00019989,2]
[326453551,1714931234354,-500.0,0.00019989,2]
[326453552,1714931234373,-500.0,0.00019989,2]
[326453553,1714931234392,-284.39621091,0.00019989,2]
[326453554,1714931234412,-500.0,0.00019989,2]
[326453555,1714931234436,-659.98,0.00019989,2]
[326453556,1714931234457,-500.0,0.00019989,2]
[326453557,1714931234477,-500.0,0.00019989,2]
[326453558,1714931234497,-500.0,0.00019989,2]
[326453559,1714931234518,-500.0,0.00019989,2]
[326453560,1714931234538,-500.0,0.00019989,2]
[326453561,1714931234557,-599.84,0.00019989,2]
[326453562,1714931234577,-500.0,0.00019989,2]
[326453563,1714931234596,-500.0,0.00019989,2]
[326453564,1714931234615,-500.0,0.00019989,2]
[326453565,1714931234634,-586.50361778,0.00019989,2]
[326453566,1714931234654,-501.51918649,0.00019989,2]
[326453567,1714931234673,-500.0,0.00019989,2]
[326453568,1714931234694,-500.0,0.00019989,2]
[326453569,1714931234713,-500.0,0.00019989,2]
[326453570,1714931234734,-473.010393,0.00019989,2]
[326453571,1714931234755,-537.0024207,0.00019989,2]
[326453572,1714931234774,-240.27582597,0.00019989,2]
[326453573,1714931234793,-8073.46,0.00019989,2]
[326453574,1714931234880,-151.0,0.00019989,2]
[326453575,1714931234905,-473.010393,0.00019989,2]
[326453576,1714931234927,-500.0,0.00019989,2]
[326453577,1714931234946,-533.96,0.00019989,2]
[326453578,1714931234966,-500.0,0.00019989,2]
[326453579,1714931234986,-500.0,0.00019989,2]
[326453580,1714931235005,-151.0,0.00019989,2]
[326453581,1714931235025,-500.0,0.00019989,2]
[326453582,1714931235045,-987.41,0.00019989,2]
[326453583,1714931235065,-3397.96,0.00019989,2]
[326453584,1714931235085,-7760.74924329,0.00019989,2]
[326453585,1714931236087,-500.0,0.00019985,2]
[326453586,1714931236106,-1670.11741571,0.00019989,2]
[326453587,1714931236674,-154.64431807,0.00019984,2]
[326453588,1714931236696,-318.763341,0.00019989,2]
[326453589,1714931236715,-425.95476279,0.00019989,2]
[326453590,1714931240096,-500.0,0.00019987,2]
[326453591,1714931240116,-2462.8,0.00019987,2]
[326453592,1714931240135,-74.04523721,0.00019989,2]
[326453593,1714931240155,-1007.71,0.00019989,2]
[326453594,1714931240175,-679.41,0.00019989,2]
[326453595,1714931240195,-504.77492183,0.00019989,2]
[326453596,1714931240215,-652.56,0.00019989,2]
[326453597,1714931240234,-500.0,0.00019989,2]
[326453598,1714931240253,-500.0,0.00019989,2]
[326453599,1714931240273,-500.0,0.00019989,2]
[326453600,1714931240293,-911.46,0.00019989,2]
[326453601,1714931240312,-1533.2,0.00019989,2]
[326453602,1714931240331,-151.0,0.00019989,2]
[326453603,1714931240355,-853.6,0.00019989,2]
[326453604,1714931240379,-151.0,0.00019989,2]
[326453605,1714931240402,-207.47569175,0.00019989,2]
[326453606,1714931240422,-151.0,0.00019989,2]
[326453607,1714931240444,-590.43,0.00019989,2]
[326453608,1714931240463,-500.0,0.00019989,2]
[326453609,1714931240560,-500.0,0.00019989,2]
[326453610,1714931240580,-500.0,0.00019989,2]
[326453611,1714931240600,-595.82007154,0.00019989,2]
[326453612,1714931240620,-500.0,0.00019989,2]
[326453613,1714931240638,-349.05128279,0.00019989,2]
[326453614,1714931240657,-208.971144,0.00019989,2]
[326453615,1714931240676,-500.0,0.00019989,2]
[326453616,1714931240696,-208.971144,0.00019989,2]
[326453617,1714931240715,-500.0,0.00019989,2]
[326453618,1714931240734,-500.0,0.00019989,2]
[326453619,1714931240753,-208.971144,0.00019989,2]
[326453620,1714931240776,-208.971144,0.00019989,2]
[326453621,1714931240795,-500.0,0.00019989,2]
[326453622,1714931240814,-811.76,0.00019989,2]
[326453623,1714931240833,-500.0,0.00019989,2]
[326453624,1714931240852,-500.0,0.00019989,2]
[326453625,1714931240871,-160.891891,0.00019989,2]
[326453626,1714931240890,-725.657532,0.00019989,2]
[326453627,1714931240911,-725.657532,0.00019989,2]
[326453628,1714931240932,-501.41969735,0.00019989,2]
[326453629,1714931240951,-725.657532,0.00019989,2]
[326453630,1714931240971,-500.0,0.00019989,2]
[326453631,1714931240989,-725.657532,0.00019989,2]
[326453632,1714931241009,-500.0,0.00019989,2]
[326453633,1714931241028,-500.0,0.00019989,2]
[326453634,1714931241047,-509.86329636,0.00019989,2]
[326453635,1714931241067,-500.0,0.00019989,2]
[326453636,1714931241087,-500.0,0.00019989,2]
[326453637,1714931241107,-500.0,0.00019989,2]
[326453638,1714931241127,-500.0,0.00019989,2]
[326453639,1714931241147,-500.0,0.00019989,2]
[326453640,1714931241166,-500.0,0.00019989,2]
[326453641,1714931241186,-500.0,0.00019989,2]
[326453642,1714931241207,-500.0,0.00019989,2]
[326453643,1714931241226,-500.0,0.00019989,2]
[326453644,1714931241246,-500.0,0.00019989,2]
[326453645,1714931241266,-500.0,0.00019989,2]
[326453646,1714931241287,-822.5,0.00019989,2]
[326453647,1714931241309,-151.0,0.00019989,2]
[326453648,1714931241330,-500.0,0.00019989,2]
[326453649,1714931241350,-500.0,0.00019989,2]
[326453650,1714931241376,-500.0,0.00019989,2]
[326453651,1714931241397,-502.39904279,0.00019989,2]
[326453652,1714931241418,-500.0,0.00019989,2]
[326453653,1714931241438,-177.12796,0.00019989,2]
[326453654,1714931241458,-177.12796,0.00019989,2]
[326453655,1714931241479,-66293.90067264,0.00019989,2]
[326453690,1714931432699,-622.11384583,0.00019985,2]
[326453691,1714931432766,-62.83615417,0.00019985,2]
[326453692,1714931432776,-500.0,0.00019985,2]
[326453693,1714931432785,-500.0,0.00019985,2]
[326453694,1714931432794,-500.0,0.00019985,2]
[326453695,1714931432803,-500.0,0.00019985,2]
[326453696,1714931432812,-1244.11,0.00019985,2]
[326453697,1714931432822,-500.0,0.00019985,2]
[326453698,1714931432831,-15595.86,0.00019985,2]
[326453699,1714931432842,-500.0,0.00019985,2]
[326453701,1714931432852,-500.0,0.00019985,2]
[326453703,1714931432861,-500.0,0.00019985,2]
[326453704,1714931432869,-1575.45,0.00019985,2]
[326453706,1714931432878,-598.69504784,0.00019985,2]
[326453707,1714931432887,-534.65,0.00019985,2]